lending/lending_fUSD_20250719
["ID","MTS","AMOUNT","RATE_DAILY","PERIOD"]
[373272297,1752925944099,-480.0,0.00020602,2]
[373272298,1752925944111,-516.49368092,0.00020602,2]
[373272299,1752925944120,-480.0,0.00020602,2]
[373272300,1752925944130,-480.0,0.00020602,2]
[373272301,1752925944139,-568.5,0.00020602,2]
[373272302,1752925944151,-238.87,0.00020602,2]
[373272303,1752925944161,-480.0,0.00020602,2]
[373272304,1752925944172,-479.9,0.00020602,2]
[373272305,1752925944181,-480.0,0.00020602,2]
[373272306,1752925944191,-480.0,0.00020602,2]
[373272307,1752925944201,-480.0,0.00020602,2]
[373272308,1752925944211,-480.0,0.00020602,2]
[373272309,1752925944221,-367.92,0.00020602,2]
[373272310,1752925944232,-480.0,0.00020602,2]
[373272311,1752925944246,-480.0,0.00020602,2]
[373272312,1752925944257,-480.0,0.00020602,2]
[373272313,1752925944267,-480.0,0.00020602,2]
[373272314,1752925944277,-480.0,0.00020602,2]
[373272315,1752925944287,-480.0,0.00020602,2]
[373272316,1752925944298,-186.76,0.00020602,2]
[373272317,1752925944309,-560.97,0.00020602,2]
[373272318,1752925944319,-623.6,0.00020602,2]
[373272319,1752925944330,-480.0,0.00020602,2]
[373272320,1752925944340,-277.96,0.00020602,2]
[373272321,1752925944350,-480.0,0.00020602,2]
[373272322,1752925944362,-258.75,0.00020602,2]
[373272323,1752925944373,-480.0,0.00020602,2]
[373272324,1752925944383,-480.0,0.00020602,2]
[373272325,1752925944393,-480.0,0.00020602,2]
[373272326,1752925944403,-489.0,0.00020602,2]
[373272327,1752925944414,-480.0,0.00020602,2]
[373272328,1752925944424,-480.0,0.00020602,2]
[373272329,1752925944435,-480.0,0.00020602,2]
[373272330,1752925944445,-480.0,0.00020602,2]
[373272331,1752925944455,-480.0,0.00020602,2]
[373272332,1752925944465,-480.0,0.00020602,2]
[373272333,1752925944475,-480.0,0.00020602,2]
[373272334,1752925944487,-480.0,0.00020602,2]
[373272335,1752925944497,-551.9,0.00020602,2]
[373272336,1752925944507,-480.0,0.00020602,2]
[373272337,1752925944517,-480.0,0.00020602,2]
[373272338,1752925944526,-480.0,0.00020602,2]
[373272339,1752925944537,-480.0,0.00020602,2]
[373272340,1752925944547,-591.33,0.00020602,2]
[373272341,1752925944557,-480.0,0.00020602,2]
[373272342,1752925944567,-662.26,0.00020602,2]
[373272343,1752925944577,-411.50068422,0.00020602,2]
[373272344,1752925944588,-480.0,0.00020602,2]
[373272345,1752925944598,-480.0,0.00020602,2]
[373272346,1752925944608,-480.0,0.00020602,2]
[373272347,1752925944619,-480.0,0.00020602,2]
[373272348,1752925944629,-480.0,0.00020602,2]
[373272349,1752925944640,-480.0,0.00020602,2]
[373272350,1752925944650,-480.0,0.00020602,2]
[373272351,1752925944660,-458.19279308,0.00020602,2]
[373272352,1752925944670,-480.0,0.00020602,2]
[373272353,1752925944679,-480.0,0.00020602,2]
[373272354,1752925944690,-276.22771783,0.00020602,2]
[373272355,1752925944699,-540.62,0.00020602,2]
[373272356,1752925944710,-480.0,0.00020602,2]
[373272357,1752925944720,-729.46,0.00020602,2]
[373272358,1752925944731,-498.46481482,0.00020602,2]
[373272359,1752925944745,-602.51,0.00020602,2]
[373272360,1752925944756,-480.0,0.00020602,2]
[373272361,1752925944766,-480.0,0.00020602,2]
[373272362,1752925944778,-480.0,0.00020602,2]
[373272363,1752925944789,-528.6,0.00020602,2]
[373272364,1752925944799,-480.0,0.00020602,2]
[373272365,1752925944808,-576.59,0.00020602,2]
[373272366,1752925944818,-480.0,0.00020602,2]
[373272367,1752925944828,-480.0,0.00020602,2]
[373272368,1752925944838,-480.0,0.00020602,2]
[373272369,1752925944848,-480.0,0.00020602,2]
[373272370,1752925944859,-480.0,0.00020602,2]
[373272371,1752925944870,-480.0,0.00020602,2]
[373272372,1752925944880,-568.37,0.00020602,2]
[373272373,1752925944891,-480.0,0.00020602,2]
[373272374,1752925944902,-480.0,0.00020602,2]
[373272375,1752925944912,-865.04,0.00020602,2]
[373272376,1752925944923,-590.07,0.00020602,2]
[373272377,1752925944932,-480.0,0.00020602,2]
[373272378,1752925944942,-534.76,0.00020602,2]
[373272379,1752925944952,-480.0,0.00020602,2]
[373272380,1752925944962,-3423.93,0.00020602,2]
[373272381,1752925944972,-480.0,0.00020602,2]
[373272382,1752925944983,-480.0,0.00020602,2]
[373272383,1752925944995,-480.0,0.00020602,2]
[373272384,1752925945005,-480.0,0.00020602,2]
[373272385,1752925945016,-510.1,0.00020602,2]
[373272386,1752925945026,-480.0,0.00020602,2]
[373272387,1752925945036,-480.0,0.00020602,2]
[373272388,1752925945046,-480.0,0.00020602,2]
[373272389,1752925945056,-480.0,0.00020602,2]
[373272390,1752925945065,-483.36,0.00020602,2]
[373272391,1752925945076,-534.08,0.00020602,2]
[373272392,1752925945085,-219.44,0.00020602,2]
[373272393,1752925945096,-610.36,0.00020602,2]
[373272394,1752925945106,-706.76,0.00020602,2]
[373272395,1752925945116,-480.0,0.00020602,2]
[373272396,1752925945126,-1249.6,0.00020602,2]
[373272397,1752925945136,-517.22,0.00020602,2]
[373272398,1752925945146,-545.98,0.00020602,2]
[373272399,1752925945156,-525.96,0.00020602,2]
[373272400,1752925945166,-480.0,0.00020602,2]
[373272401,1752925945176,-1316.89,0.00020602,2]
[373272402,1752925945185,-728.86,0.00020602,2]
[373272403,1752925945195,-815.4,0.00020602,2]
[373272404,1752925945205,-1101.71,0.00020602,2]
[373272405,1752925945215,-480.0,0.00020602,2]
[373272406,1752925945225,-748.45,0.00020602,2]
[373272407,1752925945235,-573.22,0.00020602,2]
[373272408,1752925945251,-1336.055073,0.00020602,2]
[373272409,1752925945262,-1293.804523,0.00020602,2]
[373272410,1752925945271,-480.0,0.00020602,2]
[373272411,1752925945281,-1617.28,0.00020602,2]
[373272412,1752925945292,-745.78,0.00020602,2]
[373272413,1752925945302,-151.0,0.00020602,2]
[373272414,1752925945313,-690.32,0.00020602,2]
[373272415,1752925945323,-151.0,0.00020602,2]
[373272416,1752925945334,-1070.92,0.00020602,2]
[373272417,1752925945345,-658.12,0.00020602,2]
[373272418,1752925945356,-934.12,0.00020602,2]
[373272419,1752925945366,-480.0,0.00020602,2]
[373272420,1752925945375,-1202.04,0.00020602,2]
[373272421,1752925945387,-1174.42,0.00020602,2]
[373272422,1752925945397,-480.0,0.00020602,2]
[373272423,1752925945409,-815.86,0.00020602,2]
[373272424,1752925945419,-1628.87,0.00020602,2]
[373272425,1752925945430,-1494.63,0.00020602,2]
[373272426,1752925945440,-325.6282207,0.00020602,2]
[373272427,1752925945450,-830.69,0.00020602,2]
[373272428,1752925945460,-498.11,0.00020602,2]
[373272429,1752925945470,-480.0,0.00020602,2]
[373272430,1752925945481,-543.78,0.00020602,2]
[373272431,1752925945493,-2089.05,0.00020602,2]
[373272432,1752925945503,-1437.33,0.00020602,2]
[373272433,1752925945513,-480.0,0.00020602,2]
[373272434,1752925945523,-657.72,0.00020602,2]
[373272435,1752925945533,-537.05,0.00020602,2]
[373272436,1752925945543,-480.0,0.00020602,2]
[373272437,1752925945553,-635.8,0.00020602,2]
[373272438,1752925945563,-581.67,0.00020602,2]
[373272439,1752925945572,-516.44,0.00020602,2]
[373272440,1752925945582,-1539.584669,0.00020602,2]
[373272441,1752925945592,-447.08,0.00020602,2]
[373272442,1752925945601,-2843.45,0.00020602,2]
[373272443,1752925945611,-480.0,0.00020602,2]
[373272444,1752925945621,-935.75,0.00020602,2]
[373272445,1752925945631,-629.13,0.00020602,2]
[373272446,1752925945642,-553.19,0.00020602,2]
[373272447,1752925945652,-789.27,0.00020602,2]
[373272448,1752925945661,-480.0,0.00020602,2]
[373272449,1752925945672,-480.0,0.00020602,2]
[373272450,1752925945682,-480.0,0.00020602,2]
[373272451,1752925945692,-534.81,0.00020602,2]
[373272452,1752925945702,-480.0,0.00020602,2]
[373272453,1752925945712,-937.31,0.00020602,2]
[373272454,1752925945722,-151.0,0.00020602,2]
[373272455,1752925945732,-525.08,0.00020602,2]
[373272456,1752925945744,-480.0,0.00020602,2]
[373272457,1752925945754,-2978.15,0.00020602,2]
[373272458,1752925945763,-193.865812,0.00020602,2]
[373272459,1752925945773,-480.0,0.00020602,2]
[373272460,1752925945783,-588.55,0.00020602,2]
[373272461,1752925945793,-478.4,0.00020602,2]
[373272462,1752925945803,-534.31,0.00020602,2]
[373272463,1752925945812,-151.0,0.00020602,2]
[373272464,1752925945822,-874.31,0.00020602,2]
[373272465,1752925945831,-5707.74,0.00020602,2]
[373272466,1752925945842,-457.94,0.00020602,2]
[373272467,1752925945852,-1001.03,0.00020602,2]
[373272468,1752925945862,-742.13,0.00020602,2]
[373272469,1752925945872,-151.0,0.00020602,2]
[373272470,1752925945882,-1089.17,0.00020602,2]
[373272471,1752925945892,-480.0,0.00020602,2]
[373272472,1752925945902,-480.0,0.00020602,2]
[373272473,1752925945911,-827.74,0.00020602,2]
[373272474,1752925945921,-883.65,0.00020602,2]
[373272475,1752925945931,-480.0,0.00020602,2]
[373272476,1752925945940,-630.85,0.00020602,2]
[373272477,1752925945950,-343.98,0.00020602,2]
[373272478,1752925945959,-480.0,0.00020602,2]
[373272479,1752925945969,-725.32,0.00020602,2]
[373272480,1752925945979,-546.59,0.00020602,2]
[373272481,1752925945991,-594.58,0.00020602,2]
[373272482,1752925946000,-961.48,0.00020602,2]
[373272483,1752925946011,-480.0,0.00020602,2]
[373272484,1752925946021,-480.0,0.00020602,2]
[373272485,1752925946031,-1312.32,0.00020602,2]
[373272486,1752925946040,-481.15,0.00020602,2]
[373272487,1752925946051,-3316.07,0.00020602,2]
[373272488,1752925946333,-480.0,0.00020602,2]
[373272489,1752925946343,-493.61,0.00020602,2]
[373272490,1752925946352,-480.0,0.00020602,2]
[373272491,1752925946362,-480.0,0.00020602,2]
[373272492,1752925946371,-1168.4,0.00020602,2]
[373272493,1752925946380,-3075.77,0.00020602,2]
[373272494,1752925946390,-558.22,0.00020602,2]
[373272495,1752925946399,-538.42,0.00020602,2]
[373272496,1752925946409,-480.0,0.00020602,2]
[373272497,1752925946420,-2213.01,0.00020602,2]
[373272498,1752925946430,-151.0,0.00020602,2]
[373272499,1752925946439,-617.33,0.00020602,2]
[373272500,1752925946449,-480.0,0.00020602,2]
[373272501,1752925946458,-540.49,0.00020602,2]
[373272502,1752925946468,-480.0,0.00020602,2]
[373272503,1752925946477,-151.0,0.00020602,2]
[373272504,1752925946489,-480.0,0.00020602,2]
[373272505,1752925946498,-1282.83,0.00020602,2]
[373272506,1752925946508,-418.92,0.00020602,2]
[373272507,1752925946517,-480.0,0.00020602,2]
[373272508,1752925946527,-480.0,0.00020602,2]
[373272509,1752925946536,-480.0,0.00020602,2]
[373272510,1752925946546,-643.18,0.00020602,2]
[373272511,1752925946555,-901.37,0.00020602,2]
[373272512,1752925946565,-480.0,0.00020602,2]
[373272513,1752925946575,-1874.62,0.00020602,2]
[373272514,1752925946584,-480.0,0.00020602,2]
[373272515,1752925946594,-480.0,0.00020602,2]
[373272516,1752925946603,-2423.29,0.00020602,2]
[373272517,1752925946613,-480.0,0.00020602,2]
[373272518,1752925946622,-480.0,0.00020602,2]
[373272519,1752925946631,-733.01,0.00020602,2]
[373272520,1752925946641,-853.43,0.00020602,2]
[373272521,1752925946651,-1074.29,0.00020602,2]
[373272522,1752925946660,-769.55,0.00020602,2]
[373272523,1752925946670,-570.78,0.00020602,2]
[373272524,1752925946679,-1297.2,0.00020602,2]
[373272525,1752925946689,-1019.51,0.00020602,2]
[373272526,1752925946699,-480.0,0.00020602,2]
[373272527,1752925946708,-642.8,0.00020602,2]
[373272528,1752925946717,-480.0,0.00020602,2]
[373272529,1752925946726,-548.31,0.00020602,2]
[373272530,1752925946735,-1847.27,0.00020602,2]
[373272531,1752925946745,-480.0,0.00020602,2]
[373272532,1752925946756,-4709.51,0.00020602,2]
[373272533,1752925946766,-927.42,0.00020602,2]
[373272534,1752925946775,-480.0,0.00020602,2]
[373272535,1752925946785,-913.62,0.00020602,2]
[373272536,1752925946795,-480.0,0.00020602,2]
[373272537,1752925946804,-506.89,0.00020602,2]
[373272538,1752925946814,-859.02,0.00020602,2]
[373272539,1752925946823,-781.8,0.00020602,2]
[373272540,1752925946832,-1631.07,0.00020602,2]
[373272541,1752925946842,-604.504713,0.00020602,2]
[373272542,1752925946851,-644.67,0.00020602,2]
[373272543,1752925946861,-480.0,0.00020602,2]
[373272544,1752925946871,-596.88,0.00020602,2]
[373272545,1752925946880,-555.41,0.00020602,2]
[373272546,1752925946890,-184.37276208,0.00020602,2]
[373272547,1752925946900,-604.504713,0.00020602,2]
[373272548,1752925946910,-480.0,0.00020602,2]
[373272549,1752925946919,-553.68,0.00020602,2]
[373272550,1752925946929,-480.0,0.00020602,2]
[373272551,1752925946938,-520.06,0.00020602,2]
[373272552,1752925946948,-480.0,0.00020602,2]
[373272553,1752925946957,-277.78,0.00020602,2]
[373272554,1752925946967,-3337.6,0.00020602,2]
[373272555,1752925946976,-151.0,0.00020602,2]
[373272556,1752925946985,-151.0,0.00020602,2]
[373272557,1752925946995,-874.98,0.00020602,2]
[373272558,1752925947005,-151.0,0.00020602,2]
[373272559,1752925947015,-480.0,0.00020602,2]
[373272560,1752925947024,-151.0,0.00020602,2]
[373272561,1752925947034,-171.607916,0.00020602,2]
[373272562,1752925947044,-480.0,0.00020602,2]
[373272563,1752925947054,-1018.91,0.00020602,2]
[373272564,1752925947063,-480.0,0.00020602,2]
[373272565,1752925947073,-480.0,0.00020602,2]
[373272566,1752925947082,-575.14,0.00020602,2]
[373272567,1752925947092,-480.0,0.00020602,2]
[373272568,1752925947101,-950.21,0.00020602,2]
[373272569,1752925947110,-480.0,0.00020602,2]
[373272570,1752925947120,-716.19,0.00020602,2]
[373272571,1752925947129,-1603.56,0.00020602,2]
[373272572,1752925947139,-480.0,0.00020602,2]
[373272573,1752925947148,-785.71,0.00020602,2]
[373272574,1752925947158,-653.01,0.00020602,2]
[373272575,1752925947167,-480.0,0.00020602,2]
[373272576,1752925947176,-802.07,0.00020602,2]
[373272577,1752925947186,-1379.0,0.00020602,2]
[373272578,1752925947195,-616.21,0.00020602,2]
[373272579,1752925947205,-480.0,0.00020602,2]
[373272580,1752925947214,-480.0,0.00020602,2]
[373272581,1752925947225,-168.406278,0.00020602,2]
[373272582,1752925947236,-622.48,0.00020602,2]
[373272583,1752925947248,-14833.83,0.00020602,2]
[373272584,1752925947258,-480.0,0.00020602,2]
[373272585,1752925947267,-1000.0,0.00020604,2]
[373272586,1752925947277,-1000.0,0.00020607,2]
[373272587,1752925947287,-1000.0,0.0002061,2]
[373272588,1752925947298,-1000.0,0.00020613,2]
[373272589,1752925947307,-1000.0,0.00020616,2]
[373272590,1752925947318,-1000.0,0.00020619,2]
[373272591,1752925947328,-1000.0,0.00020622,2]
[373272592,1752925947338,-1000.0,0.00020625,2]
[373272593,1752925947348,-1000.0,0.00020627,2]
[373272594,1752925947358,-1000.0,0.0002063,2]
[373272595,1752925947367,-1000.0,0.00020633,2]
[373272596,1752925947377,-1639.68,0.00020634,2]
[373272597,1752925947388,-1639.68,0.00020634,2]
[373272598,1752925947400,-1639.68,0.00020634,2]
[373272599,1752925947410,-1639.68,0.00020634,2]
[373272600,1752925947420,-1639.70980565,0.00020634,2]
[373272601,1752925947430,-1721.04,0.00020634,2]
[373272602,1752925947439,-1721.04,0.00020634,2]
[373272603,1752925947449,-1721.04,0.00020634,2]
[373272604,1752925947459,-1721.04,0.00020634,2]
[373272605,1752925947468,-1721.23392401,0.00020634,2]
[373272606,1752925947478,-1000.0,0.00020636,2]
[373272607,1752925947488,-1000.0,0.00020639,2]
[373272608,1752925947498,-1000.0,0.00020642,2]
[373272609,1752925947507,-1000.0,0.00020645,2]
[373272610,1752925947517,-1000.0,0.00020648,2]
[373272611,1752925947527,-1000.0,0.00020651,2]
[373272612,1752925947537,-1000.0,0.00020654,2]
[373272613,1752925947547,-1000.0,0.00020657,2]
[373272614,1752925947558,-1000.0,0.0002066,2]
[373272615,1752925947568,-1000.0,0.00020663,2]
[373272616,1752925947578,-1000.0,0.00020666,2]
[373272617,1752925947587,-1000.0,0.00020669,2]
[373272618,1752925947597,-12500.0,0.00020671,2]
[373272619,1752925947607,-268.634449,0.00020671,2]
[373272620,1752925947618,-151.0,0.00020671,2]
[373272621,1752925947628,-151.571714,0.00020671,2]
[373272622,1752925947639,-151.0,0.00020671,2]
[373272623,1752925947648,-1000.0,0.00020672,2]
[373272624,1752925947659,-1000.0,0.00020675,2]
[373272625,1752925947669,-312.78347059,0.00020676,2]
[373272626,1752925947678,-1000.0,0.00020678,2]
[373272627,1752925947687,-1000.0,0.00020681,2]
[373272628,1752925947697,-1000.0,0.00020683,2]
[373272629,1752925947707,-1000.0,0.00020686,2]
[373272630,1752925947717,-1000.0,0.00020689,2]
[373272631,1752925947726,-1000.0,0.00020692,2]
[373272632,1752925947736,-1000.0,0.00020695,2]
[373272633,1752925947746,-1000.0,0.00020698,2]
[373272634,1752925947756,-2000.0,0.00020699,2]
[373272635,1752925947766,-1000.0,0.00020699,2]
[373272636,1752925947776,-21102.23505728,0.000207,2]
[373272637,1752925947785,-1000.0,0.00020701,2]
[373272638,1752925947795,-1000.0,0.00020704,2]
[373272639,1752925947805,-1000.0,0.00020707,2]
[373272640,1752925947815,-1000.0,0.0002071,2]
[373272641,1752925947825,-480.0,0.00020712,2]
[373272642,1752925947835,-151.0,0.00020712,2]
[373272643,1752925947845,-151.0,0.00020712,2]
[373272644,1752925947855,-480.0,0.00020712,2]
[373272645,1752925947865,-480.0,0.00020712,2]
[373272646,1752925947875,-480.0,0.00020712,2]
[373272647,1752925947885,-568.5,0.00020712,2]
[373272648,1752925947894,-480.0,0.00020712,2]
[373272649,1752925947903,-480.0,0.00020712,2]
[373272650,1752925947914,-480.0,0.00020712,2]
[373272651,1752925947923,-480.0,0.00020712,2]
[373272652,1752925947933,-151.0,0.00020712,2]
[373272653,1752925947943,-151.0,0.00020712,2]
[373272654,1752925947952,-151.0,0.00020712,2]
[373272655,1752925947962,-151.0,0.00020712,2]
[373272656,1752925947971,-480.0,0.00020712,2]
[373272657,1752925947981,-155.505688,0.00020712,2]
[373272658,1752925947991,-151.690357,0.00020712,2]
[373272659,1752925948001,-480.0,0.00020712,2]
[373272660,1752925948011,-151.0,0.00020712,2]
[373272661,1752925948020,-480.0,0.00020712,2]
[373272662,1752925948030,-480.0,0.00020712,2]
[373272663,1752925948039,-480.0,0.00020712,2]
[373272664,1752925948049,-545.68,0.00020712,2]
[373272665,1752925948059,-271.517523,0.00020712,2]
[373272666,1752925948069,-271.517523,0.00020712,2]
[373272667,1752925948078,-416.65,0.00020712,2]
[373272668,1752925948088,-623.6,0.00020712,2]
[373272669,1752925948098,-480.0,0.00020712,2]
[373272670,1752925948108,-480.0,0.00020712,2]
[373272671,1752925948117,-480.0,0.00020712,2]
[373272672,1752925948127,-480.0,0.00020712,2]
[373272673,1752925948137,-480.0,0.00020712,2]
[373272674,1752925948147,-480.0,0.00020712,2]
[373272675,1752925948157,-559.25,0.00020712,2]
[373272676,1752925948166,-480.0,0.00020712,2]
[373272677,1752925948176,-480.0,0.00020712,2]
[373272678,1752925948185,-480.0,0.00020712,2]
[373272679,1752925948195,-480.0,0.00020712,2]
[373272680,1752925948204,-480.0,0.00020712,2]
[373272681,1752925948214,-480.0,0.00020712,2]
[373272682,1752925948223,-551.9,0.00020712,2]
[373272683,1752925948233,-151.0,0.00020712,2]
[373272684,1752925948245,-480.0,0.00020712,2]
[373272685,1752925948255,-538.94181045,0.00020712,2]
[373272686,1752925948265,-170.22263301,0.00020712,2]
[373272687,1752925948276,-480.0,0.00020712,2]
[373272688,1752925948285,-480.0,0.00020712,2]
[373272689,1752925948297,-662.26,0.00020712,2]
[373272690,1752925948307,-480.0,0.00020712,2]
[373272691,1752925948319,-185.76,0.00020712,2]
[373272692,1752925948329,-475.1,0.00020712,2]
[373272693,1752925948339,-480.0,0.00020712,2]
[373272694,1752925948349,-480.0,0.00020712,2]
[373272695,1752925948359,-480.0,0.00020712,2]
[373272696,1752925948370,-382.80542158,0.00020712,2]
[373272697,1752925948379,-480.0,0.00020712,2]
[373272698,1752925948389,-480.0,0.00020712,2]
[373272699,1752925948399,-540.62,0.00020712,2]
[373272700,1752925948409,-526.74,0.00020712,2]
[373272701,1752925948420,-729.46,0.00020712,2]
[373272702,1752925948429,-480.0,0.00020712,2]
[373272703,1752925948439,-480.0,0.00020712,2]
[373272704,1752925948448,-480.0,0.00020712,2]
[373272705,1752925948459,-528.6,0.00020712,2]
[373272706,1752925948469,-480.0,0.00020712,2]
[373272707,1752925948480,-576.59,0.00020712,2]
[373272708,1752925948490,-151.752307,0.00020712,2]
[373272709,1752925948500,-480.0,0.00020712,2]
[373272710,1752925948510,-480.0,0.00020712,2]
[373272711,1752925948519,-480.0,0.00020712,2]
[373272712,1752925948529,-480.0,0.00020712,2]
[373272713,1752925948539,-151.0,0.00020712,2]
[373272714,1752925948548,-480.0,0.00020712,2]
[373272715,1752925948558,-151.0,0.00020712,2]
[373272716,1752925948568,-480.0,0.00020712,2]
[373272717,1752925948579,-568.37,0.00020712,2]
[373272718,1752925948588,-266.82,0.00020712,2]
[373272719,1752925948599,-480.0,0.00020712,2]
[373272720,1752925948609,-865.04,0.00020712,2]
[373272721,1752925948679,-590.07,0.00020712,2]
[373272722,1752925948690,-480.0,0.00020712,2]
[373272723,1752925948699,-534.76,0.00020712,2]
[373272724,1752925948709,-480.0,0.00020712,2]
[373272725,1752925948719,-3423.93,0.00020712,2]
[373272726,1752925948729,-597.08307301,0.00020712,2]
[373272727,1752925948738,-480.0,0.00020712,2]
[373272728,1752925948748,-480.0,0.00020712,2]
[373272729,1752925948757,-480.0,0.00020712,2]
[373272730,1752925948767,-480.0,0.00020712,2]
[373272731,1752925948776,-480.0,0.00020712,2]
[373272732,1752925948786,-480.0,0.00020712,2]
[373272733,1752925948795,-277.51,0.00020712,2]
[373272734,1752925948804,-483.36,0.00020712,2]
[373272735,1752925948814,-534.08,0.00020712,2]
[373272736,1752925948823,-151.0,0.00020712,2]
[373272737,1752925948832,-610.36,0.00020712,2]
[373272738,1752925948842,-706.76,0.00020712,2]
[373272739,1752925948851,-480.0,0.00020712,2]
[373272740,1752925948860,-1249.6,0.00020712,2]
[373272741,1752925948870,-151.0,0.00020712,2]
[373272742,1752925948879,-517.22,0.00020712,2]
[373272743,1752925948888,-545.98,0.00020712,2]
[373272744,1752925948898,-525.96,0.00020712,2]
[373272745,1752925948907,-480.0,0.00020712,2]
[373272746,1752925948916,-1316.89,0.00020712,2]
[373272747,1752925948925,-728.86,0.00020712,2]
[373272748,1752925948934,-815.4,0.00020712,2]
[373272749,1752925948943,-1101.71,0.00020712,2]
[373272750,1752925948952,-329.89,0.00020712,2]
[373272751,1752925948961,-748.45,0.00020712,2]
[373272752,1752925948971,-573.22,0.00020712,2]
[373272753,1752925948980,-1336.055073,0.00020712,2]
[373272754,1752925948989,-1293.804523,0.00020712,2]
[373272755,1752925948999,-151.0,0.00020712,2]
[373272756,1752925949008,-480.0,0.00020712,2]
[373272757,1752925949018,-1617.28,0.00020712,2]
[373272758,1752925949027,-745.78,0.00020712,2]
[373272759,1752925949037,-221.786924,0.00020712,2]
[373272760,1752925949046,-690.32,0.00020712,2]
[373272761,1752925949056,-1070.92,0.00020712,2]
[373272762,1752925949065,-658.12,0.00020712,2]
[373272763,1752925949076,-934.12,0.00020712,2]
[373272764,1752925949085,-480.0,0.00020712,2]
[373272765,1752925949094,-1202.04,0.00020712,2]
[373272766,1752925949103,-1174.42,0.00020712,2]
[373272767,1752925949112,-480.0,0.00020712,2]
[373272768,1752925949122,-815.86,0.00020712,2]
[373272769,1752925949131,-1628.87,0.00020712,2]
[373272770,1752925949140,-1494.63,0.00020712,2]
[373272771,1752925949150,-830.69,0.00020712,2]
[373272772,1752925949159,-480.0,0.00020712,2]
[373272773,1752925949169,-543.78,0.00020712,2]
[373272774,1752925949178,-2089.05,0.00020712,2]
[373272775,1752925949187,-1437.33,0.00020712,2]
[373272776,1752925949197,-480.0,0.00020712,2]
[373272777,1752925949206,-657.72,0.00020712,2]
[373272778,1752925949216,-537.05,0.00020712,2]
[373272779,1752925949227,-480.0,0.00020712,2]
[373272780,1752925949236,-635.8,0.00020712,2]
[373272781,1752925949249,-581.67,0.00020712,2]
[373272782,1752925949259,-516.44,0.00020712,2]
[373272783,1752925949268,-1539.584669,0.00020712,2]
[373272784,1752925949278,-2843.45,0.00020712,2]
[373272785,1752925949287,-480.0,0.00020712,2]
[373272786,1752925949297,-935.75,0.00020712,2]
[373272787,1752925949306,-629.13,0.00020712,2]
[373272788,1752925949316,-553.19,0.00020712,2]
[373272789,1752925949326,-789.27,0.00020712,2]
[373272790,1752925949335,-480.0,0.00020712,2]
[373272791,1752925949344,-480.0,0.00020712,2]
[373272792,1752925949354,-480.0,0.00020712,2]
[373272793,1752925949363,-534.81,0.00020712,2]
[373272794,1752925949373,-480.0,0.00020712,2]
[373272795,1752925949383,-937.31,0.00020712,2]
[373272796,1752925949392,-151.0,0.00020712,2]